fUSD/lending_fUSD_20260109
["ID","MTS","AMOUNT","RATE_DAILY","PERIOD"]
[401097635,1767925840626,-1024.155,0.00013457,2]
[401097638,1767925840641,-704.4,0.00013461,2]
[401097640,1767925840653,-150.0,0.00013486,2]
[401097643,1767925840667,-10177.61217873,0.00013541,2]
[401097646,1767925840684,-150.0,0.00013541,2]
[401097649,1767925840703,-226.40401753,0.00013596,2]
[401097651,1767925840723,-3131.56554147,0.00013598,2]
[401097654,1767925840736,-500.0,0.0001363,2]
[401097656,1767925840747,-255.0,0.00013635,2]
[401097658,1767925840763,-206.86777706,0.00013688,2]
[401097661,1767925840777,-500.0,0.00013698,2]
[401097663,1767925840791,-500.0,0.00013698,2]
[401097666,1767925840802,-500.0,0.00013698,2]
[401097668,1767925840813,-510.51181022,0.00013698,2]
[401097670,1767925840825,-500.0,0.00013698,2]
[401097673,1767925840844,-500.0,0.00013698,2]
[401097676,1767925840857,-500.0,0.00013698,2]
[401097678,1767925840869,-500.0,0.00013698,2]
[401097680,1767925840880,-504.98697303,0.00013698,2]
[401097682,1767925840892,-500.0,0.00013698,2]
[401097685,1767925840906,-500.0,0.00013698,2]
[401097690,1767925840943,-500.0,0.00013698,2]
[401097692,1767925840958,-551.63629668,0.00013698,2]
[401097695,1767925840972,-511.69495578,0.00013698,2]
[401097698,1767925840987,-503.17388714,0.00013698,2]
[401097700,1767925841001,-500.0,0.00013698,2]
[401097703,1767925841016,-500.0,0.00013698,2]
[401097705,1767925841031,-339.88775481,0.00013698,2]
[401097708,1767925841045,-500.0,0.00013698,2]
[401097710,1767925841058,-500.0,0.00013698,2]
[401097713,1767925841071,-500.0,0.00013698,2]
[401097715,1767925841085,-500.0,0.00013698,2]
[401097717,1767925841100,-500.0,0.00013698,2]
[401097720,1767925841114,-500.0,0.00013698,2]
[401097722,1767925841127,-546.67038325,0.00013698,2]
[401097725,1767925841140,-500.0,0.00013698,2]
[401097727,1767925841153,-500.0,0.00013698,2]
[401097729,1767925841166,-500.0,0.00013698,2]
[401097732,1767925841180,-369.80894122,0.00013698,2]
[401097734,1767925841193,-200.0,0.00013699,2]
[401097737,1767925841206,-704.4,0.00013735,2]
[401097739,1767925841219,-420.0,0.00013763,2]
[401097741,1767925841232,-1680.0,0.00013799,2]
[401097744,1767925841245,-5403.55298029,0.00013888,2]
[401097746,1767925841257,-229.16053007,0.000139,2]
[401097749,1767925841270,-500.0,0.00013904,2]
[401097751,1767925841283,-205.83418828,0.00014005,2]
[401097753,1767925841295,-704.4,0.00014009,2]
[401097756,1767925841308,-3131.56554138,0.00014076,2]
[401097758,1767925841320,-500.0,0.00014082,2]
[401097760,1767925841333,-500.0,0.00014178,2]
[401097763,1767925841345,-716.87,0.00014196,2]
[401097765,1767925841357,-704.4,0.00014283,2]
[401097767,1767925841369,-151.52,0.00014366,2]
[401097770,1767925841382,-5403.55298029,0.00014389,2]
[401097772,1767925841394,-598.6061789,0.00014452,2]
[401097774,1767925841406,-3131.56554138,0.00014554,2]
[401097777,1767925841418,-704.4,0.00014557,2]
[401097779,1767925841431,-502.39199871,0.00014763,2]
[401097781,1767925841443,-500.0,0.00014763,2]
[401097784,1767925841455,-501.53286712,0.00014763,2]
[401097786,1767925841468,-504.58722527,0.00014763,2]
[401097788,1767925841480,-502.14927888,0.00014763,2]
[401097791,1767925841492,-502.23429163,0.00014763,2]
[401097793,1767925841504,-500.0,0.00014763,2]
[401097795,1767925841517,-500.0,0.00014763,2]
[401097797,1767925841528,-500.0,0.00014763,2]
[401097800,1767925841540,-504.30057619,0.00014763,2]
[401097802,1767925841553,-503.2370208,0.00014763,2]
[401097804,1767925841565,-500.0,0.00014763,2]
[401097807,1767925841577,-500.0,0.00014763,2]
[401097809,1767925841590,-500.0,0.00014763,2]
[401097811,1767925841603,-433.0,0.00014827,2]
[401097813,1767925841615,-704.42979464,0.00014831,2]
[401097816,1767925841628,-5403.55298029,0.00014891,2]
[401097818,1767925841640,-5014.92,0.00014999,2]
[401097820,1767925841652,-2045.55280214,0.00015,2]
[401097823,1767925841665,-1209.0686268,0.00015,2]
[401097825,1767925841677,-16557.80898367,0.00015,2]
[401097827,1767925841690,-22970.4509711,0.00015,2]
[401097830,1767925841702,-3131.56554138,0.00015032,2]
[401097832,1767925841714,-450.43,0.00015068,2]
[401097835,1767925841728,-587.0,0.000151,2]
[401097837,1767925841740,-2351.0,0.00015178,2]
[401097839,1767925841754,-1000.0,0.0001531,2]
[401097841,1767925841766,-504.05178129,0.0001531,2]
[401097844,1767925841779,-510.79999809,0.0001531,2]
[401097846,1767925841791,-1003.57869297,0.0001531,2]
[401097849,1767925841803,-1000.0,0.0001531,2]
[401097851,1767925841815,-599.35467002,0.0001531,2]
[401097853,1767925841828,-705.56277415,0.0001531,2]
[401097856,1767925841839,-5403.55298029,0.00015392,2]
[401097858,1767925841851,-507.09614172,0.000154,2]
[401097860,1767925841863,-3131.56554138,0.0001551,2]
[401097863,1767925841875,-152.0,0.00015594,2]
[401097865,1767925841887,-250.0,0.00015637,2]
[401097867,1767925841899,-200.0,0.0001564,2]
[401097869,1767925841911,-671.84564293,0.00015858,2]
[401097872,1767925841923,-1500.0,0.00015858,2]
[401097874,1767925841935,-5403.55298029,0.00015894,2]
[401097876,1767925841947,-3131.56554138,0.00015988,2]
[401097879,1767925841959,-11747.99161032,0.00016,2]
[401097881,1767925841971,-200.0,0.00016029,2]
[401097883,1767925841983,-736.0,0.00016107,2]
[401097886,1767925841994,-207.4,0.00016196,2]
[401097888,1767925842006,-500.0,0.00016337,2]
[401097890,1767925842018,-500.0,0.00016337,2]
[401097892,1767925842030,-500.0,0.00016337,2]
[401097895,1767925842041,-500.0,0.00016337,2]
[401097897,1767925842053,-500.0,0.00016337,2]
[401097899,1767925842064,-500.0,0.00016337,2]
[401097902,1767925842076,-504.23210623,0.00016337,2]
[401097904,1767925842087,-500.0,0.00016337,2]
[401097906,1767925842103,-500.0,0.00016337,2]
[401097909,1767925842114,-500.0,0.00016337,2]
[401097911,1767925842126,-500.0,0.00016337,2]
[401097913,1767925842139,-182.56700377,0.00016338,2]
[401097916,1767925842151,-200.0,0.0001634,2]
[401097918,1767925842163,-176.7589832,0.00016392,2]
[401097920,1767925842176,-5403.55298029,0.00016395,2]
[401097923,1767925842188,-507.71616491,0.00016406,2]
[401097925,1767925842200,-1852.42,0.00016422,2]
[401097927,1767925842212,-322.92952326,0.00016438,2]
[401097929,1767925842223,-422.58,0.00016438,2]
[401097932,1767925842235,-422.58,0.00016438,2]
[401097934,1767925842247,-422.58,0.00016438,2]
[401097936,1767925842259,-422.58,0.00016438,2]
[401097939,1767925842271,-422.58,0.00016438,2]
[401097941,1767925842282,-422.58,0.00016438,2]
[401097943,1767925842294,-422.58,0.00016438,2]
[401097946,1767925842306,-422.58,0.00016438,2]
[401097948,1767925842317,-422.58,0.00016438,2]
[401097950,1767925842329,-422.58,0.00016438,2]
[401097953,1767925842340,-422.58,0.00016438,2]
[401097955,1767925842352,-422.58,0.00016438,2]
[401097957,1767925842364,-422.58,0.00016438,2]
[401097959,1767925842376,-422.58,0.00016438,2]
[401097962,1767925842387,-422.58,0.00016438,2]
[401097964,1767925842399,-422.58,0.00016438,2]
[401097966,1767925842411,-422.58,0.00016438,2]
[401097967,1767925842423,-422.58,0.00016438,2]
[401097968,1767925842436,-422.58,0.00016438,2]
[401097970,1767925842448,-422.58,0.00016438,2]
[401097972,1767925842459,-422.58,0.00016438,2]
[401097974,1767925842471,-422.58,0.00016438,2]
[401097977,1767925842483,-422.58,0.00016438,2]
[401097979,1767925842494,-422.74119631,0.00016438,2]
[401097981,1767925842506,-500.0,0.00016438,2]
[401097984,1767925842518,-500.0,0.00016438,2]
[401097986,1767925842529,-500.0,0.00016438,2]
[401097988,1767925842542,-500.0,0.00016438,2]
[401097991,1767925842553,-500.0,0.00016438,2]
[401097993,1767925842565,-500.0,0.00016438,2]
[401097995,1767925842577,-500.0,0.00016438,2]
[401097997,1767925842588,-500.0,0.00016438,2]
[401098000,1767925842600,-500.0,0.00016438,2]
[401098002,1767925842611,-500.0,0.00016438,2]
[401098004,1767925842623,-500.0,0.00016438,2]
[401098007,1767925842634,-500.0,0.00016438,2]
[401098009,1767925842646,-500.0,0.00016438,2]
[401098010,1767925842657,-500.0,0.00016438,2]
[401098011,1767925842669,-500.0,0.00016438,2]
[401098012,1767925842680,-500.0,0.00016438,2]
[401098013,1767925842692,-500.0,0.00016438,2]
[401098014,1767925842703,-639.35934116,0.00016438,2]
[401098015,1767925842715,-791.3,0.00016438,2]
[401098016,1767925842727,-300.0,0.00016438,2]
[401098017,1767925842739,-300.0,0.00016438,2]
[401098018,1767925842751,-300.0,0.00016438,2]
[401098019,1767925842764,-300.0,0.00016438,2]
[401098020,1767925842776,-300.0,0.00016438,2]
[401098021,1767925842787,-300.0,0.00016438,2]
[401098022,1767925842799,-300.0,0.00016438,2]
[401098023,1767925842812,-300.0,0.00016438,2]
[401098024,1767925842823,-300.0,0.00016438,2]
[401098025,1767925842834,-300.0,0.00016438,2]
[401098026,1767925842845,-300.0,0.00016438,2]
[401098027,1767925842856,-300.0,0.00016438,2]
[401098028,1767925842868,-300.0,0.00016438,2]
[401098029,1767925842879,-371.96837686,0.00016438,2]
[401098030,1767925842890,-500.0,0.00016438,2]
[401098031,1767925842901,-500.0,0.00016438,2]
[401098032,1767925842912,-500.0,0.00016438,2]
[401098033,1767925842924,-500.0,0.00016438,2]
[401098034,1767925842935,-500.0,0.00016438,2]
[401098035,1767925842946,-500.0,0.00016438,2]
[401098036,1767925842957,-349.63500484,0.00016438,2]
[401098037,1767925842968,-500.0,0.00016438,2]
[401098038,1767925842979,-500.0,0.00016438,2]
[401098040,1767925842990,-450.43,0.00016438,2]
[401098042,1767925843001,-802.78621934,0.00016438,2]
[401098044,1767925843012,-164.76,0.0001644,2]
[401098045,1767925843022,-164.76,0.0001644,2]
[401098046,1767925843034,-164.76,0.0001644,2]
[401098047,1767925843045,-3131.56554138,0.00016466,2]
[401098048,1767925843057,-823.0,0.00016568,2]
[401098049,1767925843068,-359.61007335,0.000166,2]
[401098050,1767925843080,-3292.0,0.00016696,2]
[401098051,1767925843094,-500.0,0.00016711,2]
[401098052,1767925843114,-791.3,0.00016712,2]
[401098053,1767925843124,-16740.34959736,0.00016777,2]
[401098054,1767925843135,-469.60768673,0.00016786,2]
[401098055,1767925843146,-5403.55298029,0.00016897,2]
[401098056,1767925843157,-157.78803463,0.00016899,2]
[401098057,1767925843168,-367.98545983,0.000169,2]
[401098058,1767925843179,-3131.56554138,0.00016944,2]
[401098059,1767925843190,-164.76,0.00016976,2]
[401098060,1767925843200,-791.3,0.00016986,2]
[401098061,1767925843211,-150.0,0.00016986,2]
[401098062,1767925843222,-721169.03,0.00016986,2]
[401098063,1767925843233,-2000.61975215,0.00016989,2]
[401098064,1767925843245,-419.81,0.00017,2]
[401098065,1767925843256,-250.0,0.00017,2]
[401098066,1767925843267,-160.0,0.00017,2]
[401098067,1767925843278,-2674.52594788,0.00017099,2]
[401098068,1767925843289,-1247.59056919,0.00017099,2]
[401098069,1767925843299,-3992.76860017,0.00017099,2]
[401098070,1767925843310,-322.6107,0.00017099,2]
[401098071,1767925843321,-303.65393209,0.00017099,2]
[401098072,1767925843332,-817.14196005,0.00017099,2]
[401098073,1767925843343,-2000.0,0.00017099,2]
[401098074,1767925843354,-500.0,0.00017099,2]
[401098075,1767925843364,-1500.0,0.00017099,2]
[401098076,1767925843375,-500.0,0.00017099,2]
[401098077,1767925843386,-2000.0,0.00017099,2]
[401098078,1767925843398,-1500.0,0.00017099,2]
[401098079,1767925843409,-500.0,0.00017099,2]
[401098080,1767925843420,-1628.02313146,0.00017099,2]
[401098081,1767925843431,-500.0,0.00017099,2]
[401098082,1767925843442,-1500.0,0.00017099,2]
[401098083,1767925843453,-500.0,0.00017099,2]
[401098084,1767925843464,-1500.0,0.00017099,2]
[401098085,1767925843475,-264.02807282,0.00017099,2]
[401098086,1767925843486,-1500.0,0.00017099,2]
[401098087,1767925843497,-1500.0,0.00017099,2]
[401098088,1767925843507,-1500.0,0.00017099,2]
[401098089,1767925843518,-621.78361711,0.00017099,2]
[401098090,1767925844051,-1771.03382657,0.00017099,2]
[401098091,1767925844098,-620.0,0.00017099,2]
[401098092,1767925844120,-578.20924308,0.00017099,2]
[401098093,1767925844130,-151.0,0.00017099,2]
[401098094,1767925844140,-500.0,0.00017099,2]
[401098095,1767925844149,-500.0,0.00017099,2]
[401098096,1767925844158,-553.64373807,0.00017099,2]
[401098097,1767925844168,-500.0,0.00017099,2]
[401098098,1767925844180,-500.0,0.00017099,2]
[401098099,1767925844189,-500.0,0.00017099,2]
[401098100,1767925844198,-500.0,0.00017099,2]
[401098101,1767925844208,-500.0,0.00017099,2]
[401098102,1767925844217,-500.0,0.00017099,2]
[401098103,1767925844226,-500.0,0.00017099,2]
[401098104,1767925844235,-500.0,0.00017099,2]
[401098105,1767925844244,-500.0,0.00017099,2]
[401098106,1767925844254,-481.23946277,0.00017099,2]
[401098107,1767925844263,-500.0,0.00017099,2]
[401098108,1767925844273,-500.0,0.00017099,2]
[401098109,1767925844282,-500.0,0.00017099,2]
[401098110,1767925844292,-500.0,0.00017099,2]
[401098111,1767925844301,-500.0,0.00017099,2]
[401098112,1767925844310,-353.83614123,0.00017099,2]
[401098113,1767925844319,-150.0,0.00017178,2]
[401098114,1767925844329,-1224.84,0.00017178,2]
[401098115,1767925844338,-155.79,0.00017178,2]
[401098116,1767925844347,-791.3,0.0001726,2]
[401098117,1767925844356,-5403.55298029,0.00017398,2]
[401098118,1767925844365,-1000.0,0.000174,2]
[401098119,1767925844374,-367.98545981,0.000174,2]
[401098120,1767925844383,-3131.56554138,0.00017422,2]
[401098121,1767925844393,-505.0,0.00017479,2]
[401098122,1767925844402,-1601.1452557,0.000175,2]
[401098123,1767925844410,-1252.0,0.00017512,2]
[401098124,1767925844419,-791.3,0.00017534,2]
[401098125,1767925844428,-1000.0,0.000176,2]
[401098126,1767925844437,-1140.93330619,0.00017607,2]
[401098127,1767925844446,-1741.98050018,0.0001764,2]
[401098128,1767925844455,-151.0,0.00017647,2]
[401098129,1767925844465,-574.12855637,0.00017647,2]
[401098130,1767925844474,-151.52,0.00017674,2]
[401098131,1767925844483,-779.93594743,0.000177,2]
[401098132,1767925844492,-500.0,0.00017799,2]
[401098133,1767925844502,-43709.14658721,0.000178,2]
[401098134,1767925844511,-1000.0,0.000178,2]
[401098135,1767925844520,-791.3,0.00017808,2]
[401098136,1767925844529,-5888.0,0.00017811,2]
[401098137,1767925844538,-202.0,0.00017816,2]
[401098138,1767925844547,-466.71,0.00017817,2]
[401098139,1767925844556,-361.26,0.00017817,2]
[401098140,1767925844566,-818.49581,0.0001782,2]
[401098141,1767925844575,-818.4958,0.0001782,2]
[401098142,1767925844585,-818.49581,0.0001783,2]
[401098143,1767925844594,-2000.0,0.00017856,2]
[401098144,1767925844603,-200.0,0.00017856,2]
[401098145,1767925844612,-818.4958,0.0001786,2]
[401098146,1767925844621,-818.49581,0.0001788,2]
[401098147,1767925844630,-10000.0,0.00017899,2]
[401098148,1767925844639,-3131.56554138,0.000179,2]
[401098149,1767925844649,-367.98545981,0.000179,2]
[401098150,1767925844658,-5403.55298029,0.000179,2]
[401098151,1767925844667,-1722.70176245,0.000179,2]
[401098152,1767925844677,-2806.06348518,0.000179,2]
[401098153,1767925844687,-165.2445396,0.000179,2]
[401098154,1767925844696,-500.0,0.000179,2]
[401098155,1767925844705,-500.0,0.000179,2]
[401098156,1767925844715,-500.0,0.000179,2]
[401098157,1767925844724,-500.0,0.000179,2]
[401098158,1767925844732,-500.0,0.000179,2]
[401098159,1767925844742,-500.0,0.000179,2]
[401098160,1767925844751,-500.0,0.000179,2]
[401098161,1767925844760,-500.0,0.000179,2]
[401098162,1767925844770,-500.0,0.000179,2]
[401098163,1767925844779,-500.0,0.000179,2]
[401098164,1767925844788,-500.0,0.000179,2]
[401098165,1767925844797,-500.0,0.000179,2]
[401098166,1767925844810,-500.0,0.000179,2]
[401098167,1767925844819,-500.0,0.000179,2]
[401098168,1767925844828,-500.0,0.000179,2]
[401098169,1767925844837,-500.0,0.000179,2]
[401098170,1767925844847,-500.0,0.000179,2]
[401098171,1767925844856,-500.0,0.000179,2]
[401098172,1767925844866,-500.0,0.000179,2]
[401098173,1767925844875,-500.0,0.000179,2]
[401098174,1767925844884,-11144.0,0.000179,2]
[401098175,1767925844894,-818.49581,0.0001791,2]
[401098176,1767925844903,-5800.0,0.00017941,2]
[401098177,1767925844912,-5800.0,0.00017949,2]
[401098178,1767925844924,-5800.0,0.00017958,2]
[401098179,1767925844934,-5800.0,0.00017966,2]
[401098180,1767925844943,-500.0,0.00017973,2]
[401098181,1767925844952,-500.0,0.00017973,2]
[401098182,1767925844961,-372.6640454,0.00017973,2]
[401098183,1767925844970,-500.0,0.00017973,2]
[401098184,1767925844979,-500.0,0.00017973,2]
[401098185,1767925844988,-500.0,0.00017973,2]
[401098186,1767925844997,-500.0,0.00017973,2]
[401098187,1767925845006,-500.0,0.00017973,2]
[401098188,1767925845015,-500.0,0.00017973,2]
[401098189,1767925845024,-500.0,0.00017973,2]
[401098190,1767925845033,-160.6645308,0.00017973,2]
[401098191,1767925845042,-166.05644704,0.00017973,2]
[401098192,1767925845051,-169.10832564,0.00017973,2]
[401098193,1767925845061,-507.65773125,0.00017973,2]
[401098194,1767925845071,-500.0,0.00017973,2]
[401098195,1767925845079,-501.26195682,0.00017973,2]
[401098196,1767925845088,-179.20096908,0.00017973,2]
[401098197,1767925845100,-625.00819918,0.00017973,2]
[401098198,1767925845109,-500.78697171,0.00017973,2]
[401098199,1767925845118,-500.24048348,0.00017973,2]
[401098200,1767925845128,-500.0,0.00017973,2]
[401098201,1767925845137,-500.0,0.00017973,2]
[401098202,1767925845148,-500.0,0.00017973,2]
[401098203,1767925845159,-500.0,0.00017973,2]
[401098204,1767925845169,-506.42241375,0.00017973,2]
[401098205,1767925845183,-500.51815801,0.00017973,2]
[401098206,1767925845193,-500.0,0.00017973,2]
[401098207,1767925845202,-375.44031674,0.00017973,2]
[401098208,1767925845212,-165.3256661,0.00017973,2]
[401098209,1767925845222,-500.36206432,0.00017973,2]
[401098210,1767925845231,-500.0,0.00017973,2]
[401098211,1767925845240,-308.1909641,0.00017973,2]
[401098212,1767925845249,-500.0,0.00017973,2]
[401098213,1767925845258,-500.0,0.00017973,2]
[401098214,1767925845267,-150.0,0.00017973,2]
[401098215,1767925845276,-5800.0,0.00017975,2]
[401098216,1767925845285,-500.0,0.00017982,2]
[401098217,1767925845294,-219.52249285,0.00017982,2]
[401098218,1767925845303,-500.0,0.00017982,2]
[401098219,1767925845312,-5800.0,0.00017983,2]
[401098220,1767925845321,-508.33302413,0.00017989,2]
[401098221,1767925845330,-500.0,0.00017989,2]
[401098222,1767925845339,-206.86777706,0.0001799,2]
[401098223,1767925845357,-206.86777706,0.0001799,2]
[401098224,1767925845369,-5800.0,0.00017992,2]
[401098225,1767925845378,-242.0,0.00017992,2]
[401098226,1767925845387,-276.01426264,0.00017999,2]
[401098227,1767925845397,-500.0,0.00017999,2]
[401098228,1767925845407,-500.0,0.00017999,2]
[401098229,1767925845416,-500.0,0.00017999,2]
[401098230,1767925845425,-500.0,0.00017999,2]
[401098231,1767925845434,-500.0,0.00017999,2]
[401098232,1767925845443,-511.98797605,0.00017999,2]
[401098233,1767925845452,-1006.3197,0.00017999,2]
[401098234,1767925845462,-500.0,0.00017999,2]
[401098235,1767925845471,-500.0,0.00017999,2]
[401098236,1767925845480,-500.0,0.00017999,2]
[401098237,1767925845491,-500.0,0.00017999,2]
[401098238,1767925845500,-500.0,0.00017999,2]
[401098239,1767925845508,-500.0,0.00017999,2]
[401098240,1767925845518,-602.31786917,0.00017999,2]
[401098241,1767925845528,-542.95517596,0.00017999,2]
[401098242,1767925845538,-300.0,0.00017999,2]
[401098243,1767925845547,-300.0,0.00017999,2]
[401098244,1767925845556,-300.0,0.00017999,2]
[401098245,1767925845566,-500.0,0.00017999,2]
[401098246,1767925845575,-500.0,0.00017999,2]
[401098247,1767925845585,-500.0,0.00017999,2]
[401098248,1767925845596,-500.0,0.00017999,2]
[401098249,1767925845605,-500.0,0.00017999,2]
[401098250,1767925845615,-500.0,0.00017999,2]
[401098251,1767925845624,-500.0,0.00017999,2]
[401098252,1767925845634,-500.0,0.00017999,2]
[401098253,1767925845643,-500.0,0.00017999,2]
[401098254,1767925845653,-500.0,0.00017999,2]
[401098255,1767925845663,-500.0,0.00017999,2]
[401098256,1767925845672,-500.0,0.00017999,2]
[401098257,1767925845681,-500.0,0.00017999,2]
[401098258,1767925845691,-500.0,0.00017999,2]
[401098259,1767925845701,-500.0,0.00017999,2]
[401098260,1767925845711,-500.0,0.00017999,2]
[401098261,1767925845721,-370.00714586,0.00017999,2]
[401098262,1767925845730,-300.0,0.00017999,2]
[401098263,1767925845740,-666.0,0.00017999,2]
[401098264,1767925845750,-300.0,0.00017999,2]
[401098265,1767925845760,-11541.22312061,0.00017999,2]
[401098266,1767925845770,-300.0,0.00017999,2]
[401098267,1767925845779,-436.09613774,0.00017999,2]
[401098268,1767925845789,-666.0,0.00017999,2]
[401098269,1767925845799,-183.8943423,0.00017999,2]
[401098270,1767925845809,-29396.6687301,0.00018,5]
[401098271,1767925845820,-1808365.42810282,0.00018,2]
[401098273,1767925846906,-320.048402,0.00018,2]
[401098274,1767925847251,-164.76,0.00016976,2]
[401098275,1767925847260,-160.21946918,0.00017716,2]
[401098276,1767925847271,-674.98053082,0.00017716,2]
[401098277,1767925847526,-645.17331472,0.00017716,2]
[401098278,1767925847536,-1088.01948531,0.00017753,2]
[401098284,1767927031822,-150.1,0.00013028,2]
[401098285,1767927031832,-150.1,0.00013028,2]
[401098286,1767927031842,-150.1,0.00013028,2]
[401098287,1767927031851,-222.12327296,0.00013597,2]
[401098288,1767927031861,-833.687963,0.00013628,2]
[401098289,1767927031871,-150.0,0.00013697,2]
[401098290,1767927031880,-300.0,0.00013697,2]
[401098291,1767927031890,-1200.0,0.00013697,2]
[401098292,1767927031899,-277.0,0.00013697,2]
[401098293,1767927031909,-500.0,0.00013698,2]
[401098294,1767927031918,-250.71142744,0.00013698,2]
[401098295,1767927031933,-249.28857256,0.00013698,2]
[401098296,1767927031942,-500.0,0.00013698,2]
[401098297,1767927031952,-500.0,0.00013698,2]
[401098298,1767927031962,-500.0,0.00013698,2]
[401098299,1767927031972,-500.0,0.00013698,2]
[401098300,1767927031981,-500.0,0.00013698,2]
[401098301,1767927031991,-500.0,0.00013698,2]
[401098302,1767927032001,-500.0,0.00013698,2]
[401098303,1767927032011,-500.0,0.00013698,2]
[401098304,1767927032021,-500.0,0.00013698,2]
[401098305,1767927032031,-500.0,0.00013698,2]
[401098306,1767927032041,-500.0,0.00013698,2]
[401098307,1767927032050,-500.0,0.00013698,2]
[401098308,1767927032060,-203.03,0.00013698,2]
[401098309,1767927032070,-203.03,0.00013972,2]
[401098310,1767927032080,-203.03,0.00014246,2]
[401098311,1767927032092,-2500.0,0.0001433,2]
[401098313,1767927032101,-1874.57174315,0.0001433,2]
[401098315,1767927032111,-1466.98438988,0.0001433,2]
[401098318,1767927032129,-999.0,0.0001433,2]
[401098321,1767927032154,-34.01561012,0.0001433,2]
[401098324,1767927032165,-303.98438988,0.0001433,2]
[401098327,1767927032176,-1342.11014805,0.0001433,2]
[401098331,1767927032209,-853.90546207,0.0001433,2]
[401098333,1767927032218,-114.83617505,0.0001452,2]
[401098363,1767927038039,-88.19382495,0.0001452,2]
[401098364,1767927038049,-2853.97787511,0.00014758,2]
[401098365,1767927038061,-3989.33533778,0.00014758,2]
[401098535,1767927039926,-886.52454978,0.00014758,2]
[401098541,1767927039979,-5458.47223733,0.00014758,2]
[401098543,1767927039989,-203.05,0.00014794,2]
[401098545,1767927039999,-255.0,0.0001482,2]
[401098547,1767927040008,-323.72,0.00014858,2]
[401098550,1767927040018,-151.0,0.00014874,2]
[401098552,1767927040029,-151.0,0.00014874,2]
[401098554,1767927040039,-151.0,0.00014874,2]
[401098556,1767927040048,-151.0,0.00014874,2]
[401098558,1767927040058,-151.0,0.00014874,2]
[401098560,1767927040068,-349.65333065,0.00014874,2]
[401098562,1767927040077,-151.0,0.00014874,2]
[401098564,1767927040089,-151.0,0.00014874,2]
[401098566,1767927040100,-151.0,0.00014874,2]
[401098568,1767927040110,-151.0,0.00014874,2]
[401098570,1767927040119,-151.0,0.00014874,2]
[401098572,1767927040128,-151.0,0.00014874,2]
[401098574,1767927040138,-151.0,0.00014874,2]
[401098576,1767927040149,-500.0,0.0001488,2]
[401098578,1767927040159,-500.0,0.0001488,2]
[401098580,1767927040170,-500.0,0.0001488,2]
[401098582,1767927040180,-500.0,0.0001488,2]
[401098585,1767927040191,-500.0,0.0001488,2]
[401098587,1767927040201,-500.0,0.0001488,2]
[401098588,1767927040210,-303.85273417,0.0001488,2]
[401098590,1767927040220,-500.0,0.0001488,2]
[401098592,1767927040229,-500.0,0.0001488,2]
[401098595,1767927040239,-1500.0,0.00014989,2]
[401098597,1767927040248,-420.0,0.0001501,2]
[401098598,1767927040258,-500.0,0.00015041,2]
[401098601,1767927040267,-3270.08693121,0.00015057,2]
[401098603,1767927040277,-1680.0,0.00015067,2]
[401098605,1767927040293,-3841.5,0.0001516,2]
[401098607,1767927040306,-3240.0,0.00015221,2]
[401098609,1767927040317,-151.0,0.0001549,2]
[401098611,1767927040327,-151.0,0.0001549,2]